{"text_format":"2","workbook":"xlsx","n_sheets":2,"sheets":["SUMMARY","WAITING SHELTER"],"not_rendered":{"charts":0,"images":0,"macros":0,"external_links":0,"defined_names":2,"comments":0,"pivot_tables":0},"unopened":[],"bounds":{"document_bytes":16777216,"sheet_cells":100000,"run_cost":"one","rows_first":2000,"rows_last":500,"rows_between":2000,"halvings":0,"cell_chars":16384,"cell_head_chars":4096},"cells_cut":0,"cells_raw":0,"read":"whole","date_system":"1900"}

{"sheet":"SUMMARY","index":0,"n_rows":21,"n_cols":3,"rows_kept":21,"cut":false,"hidden":false,"merged":[[1,0,1,1],[0,0,0,1],[5,0,5,1],[7,1,7,2],[2,0,2,1],[3,0,3,1],[4,0,4,1]]}
["ITB/MOZ10/2020/001"]
["CONSTRUCTION OF SEVENTEEN (17) WAITING SHELTERS AND FIVE (5) WARDS FOR TB CLINICS IN FOUR (4) PROVINCES – FOUR (4) LOTS"]
[]
["ALPENDRE DE ESPERA TUBERCULOSE / TB WAITING SHELTER",null,"RESUMO"]
["MAPA DE QUANTIDADES / BILL OF QUANTITIES",null,"SUMMARY"]
[]
["ITEM","DESCRIÇÃO / DESCRIPTION"," PREÇO TOTAL / TOTAL PRICE"]
[null,"RESUMO"]
["I","PRELIMINARES / PRELIMINARY WORKS",{"$f":"'WAITING SHELTER'!F21","v":0}]
["II","MOVIMENTO DE TERRA / EARTHWORKS",{"$f":"'WAITING SHELTER'!F35","v":0}]
["II","ACO BETAO E COFRAGEM / CONCRETE, STEEL AND FORM WORKS",{"$f":"'WAITING SHELTER'!F45","v":0}]
["IV","ALVENARIAS / MASONRY",{"$f":"'WAITING SHELTER'!F53","v":0}]
["V","COBERTURA / ROOF WORKS",{"$f":"'WAITING SHELTER'!F61","v":0}]
["VI","ACABAMENTOS / FINISHINGS",{"$f":"'WAITING SHELTER'!F69","v":0}]
["VII","REDE HIDRAULICA / HYDRAULICS",{"$f":"'WAITING SHELTER'!F77","v":0}]
["VIII","INSTALACAO ELECTRICA / ELECTRICITY",{"$f":"'WAITING SHELTER'!F81","v":0}]
["IX","BANCOS / BENCHES",{"$f":"'WAITING SHELTER'!F85","v":0}]
[]
[null,"SubTotal",{"$f":"SUM(C9:C18)","v":0}]
[null,"IVA / VAT 17%",{"$f":"C19*0.17","v":0}]
[null,"TOTAL",{"$f":"C19+C20","v":0}]

{"sheet":"WAITING SHELTER","index":1,"n_rows":85,"n_cols":6,"rows_kept":85,"cut":false,"hidden":false,"merged":[[5,0,5,3],[0,0,0,3],[1,0,1,3],[2,0,2,3],[3,0,3,3],[4,0,4,3]]}
[{"$f":"SUMMARY!A1","v":"ITB/MOZ10/2020/001"}]
[{"$f":"SUMMARY!A2","v":"CONSTRUCTION OF SEVENTEEN (17) WAITING SHELTERS AND FIVE (5) WARDS FOR TB CLINICS IN FOUR (4) PROVINCES – FOUR (4) LOTS"}]
[]
[{"$f":"SUMMARY!A4","v":"ALPENDRE DE ESPERA TUBERCULOSE / TB WAITING SHELTER"}]
[{"$f":"SUMMARY!A5","v":"MAPA DE QUANTIDADES / BILL OF QUANTITIES"}]
[]
["ITEM","DESCRIÇÃO / DESCRIPTION","UN","QUANT."," PREÇO UNITÁRIO / UNIT PRICE"," PREÇO TOTAL / TOTAL PRICE "]
[null,"I.  PRELIMINARES / PRELIMINARY WORKS"]
["1.1","Mobilização e desmobilização de pessoal alocado a obra, incluindo aprovisionamento de máquinas e equipamentos ","Vg",1,null,{"$f":"D9*ROUND(E9,2)","v":0}]
[null,"Mobilization and demobilization of technical people, including machinery and equipment",null,null,null,{"$f":"D10*ROUND(E10,2)","v":0}]
["1.2","Fornecimento e montagem de Placa de obra, com os dizeres conforme indicado no desenho e sua remocao no final da obra","Un",1,null,0]
[null,"Supply and assembly the site sign with project information, according with the Drawing",null,null,null,0]
["1.3","Pagamento e obtenção de despesas legais de licenças camarárias, taxas e emolumentos","Vg",1,null,0]
[null,"Payment of municipal licenses and taxes",null,null,null,0]
["1.4","Limpeza e remoção por meios mecanicos de todo o material resultante dos trabalhos para o vazadouro","Vg",1,null,0]
[null,"Cleaning and removal of debris to the ditch",null,null,null,0]
["1.5","Marcação e colocação de cangalho para a implantação da obra, incluindo trabalhos complementares","Vg",1,null,0]
[null,"Foundation and brickwork setting out, including all complementary works",null,null,null,0]
["1.6","Fornecimento e aplicacao de anti termitas de acordo com instrucoes do fabricante","m2",66,null,0]
[null,"Anti termite treatment according with the manufactture's instructions",null,null,null,0]
[null,"SUB TOTAL 1",null,null,null,{"$f":"SUM(F9:F20)","v":0}]
[null,"II.  MOVIMENTO DE TERRA / EARTHWORK"]
["2.1","Abertura de caboucos para as Sapatas das fundações dos pilares, a uma profundidade de 1.00 m e 0,60 m para sapata corrida para assentamento da alvenaria de fundação","m3",16.71,null,{"$f":"D23*ROUND(E23,2)","v":0}]
[null,"Opening trenches for foundation work, including complementary works",null,null,null,0]
["2.2","Rega e compactação do leito das fundações, com uso de compactadora","m2",16.71,null,0]
[null,"Irrigate and compact the foundation soil with compactor machinery",null,null,null,0]
["2.3","Fornecimento e assentamento de pedra mediana (enrocamento) no leito da fundação, com uma espessura de 0.10m","m3",1.1100000000000001,null,0]
[null,"Hard core filling under trenches surface base, 0.10m thick, including complementary works",null,null,null,0]
["2.4","Aterro em fundações com material proveniente das escavações, incluindo trabalhos complementares","m3",16.71,null,0]
[null,"Backfilling under trenches surface base  including complementary works",null,null,null,0]
["2.5","Aterro em caixa de pavimento com material do emprestimo, incluindo a rega e compactação em camadas de 10cm","m3",{"$f":"66*0.2","v":13.200000000000001},null,0]
[null,"Backfilling under trenches surface base in 200mm layers in to a minimum density of 95% including complementary works",null,null,null,0]
["2.6","Fornecimento e assentamento de Enrocamento em caixa de pavimento com uma espessura de 0,10m, incluindo rega e compactacao","m3",{"$f":"66*0.1","v":6.6000000000000005},null,0]
[null,"Hard core filling under pavement surface base, 0.10m thick, including complementary works",null,null,null,0]
[null,"SUB TOTAL 2",null,null,null,{"$f":"SUM(F23:F34)","v":0}]
[null,"III.  ACO BETAO E COFRAGEM / STEEL CONCRETE AND FORMWORK"]
["3.1","Fornecimento e aplicação de betão de limpeza em fundações incluindo trabalhos complementares","m3",2.72,null,{"$f":"D37*ROUND(E37,2)","v":0}]
[null,"Supply and Assembly of light Concrete under foundation surface, including all complementary works",null,null,null,0]
["3.2","Fornecimento e aplicação de betão B25 em Sapatas corridas e isoladas,  laje de pavimento, pilares e Vigas, incluindo cofragem, vibração e todos os trabalhos complementares.","m3",12.87,null,0]
[null,"Supply and Assembly of B25 Concrete in foundation, Pavement, columns and Beams, including formworks and all complementary works",null,null,null,0]
["3.3","Fornecimento e aplicação de Ferro Ø10mm da Classe A400 nervurado para as as sapatas isoladas e pilare e vigas incluindo todos os trabalhos complementares de dobragem e amarracao","Kg",391,null,0]
[null,"Supply and Assembly of Class A400 Ø10mm steel reinforcement in foundations, columns and beams, including bending, connection wire and all complementary works",null,null,null,0]
["3.4","Fornecimento e aplicação de ferro Ø6mm da Classe A400, para execucao de estribos de vigas e pilares, incluindo todos trabalhos complementares de dobragem e amarracao","Kg",180,null,0]
[null,"Supply and Assembly of Class A400 Ø6mm steel reinforcement to beams and columns stirrups, including bending, conection wire and all complementary works",null,null,null,0]
[null,"SUB TOTAL 3",null,null,null,{"$f":"SUM(F37:F44)","v":0}]
[null,"IV. ALVENARIAS / MASONRY"]
["4.1","Fornecimento e execução de alvenaria de fundação em blocos de 0.20 m maciços e assentes com argamassa de cimento e areia ao traço de 1:4 incluindo trabalhos complementares","m2",18.8,null,{"$f":"D47*ROUND(E47,2)","v":0}]
[null,"Supply and laying of masonry 0.20m thick solid brick in the foundations, laid with cement mortar and sand ratio 1:4 including all complementary work",null,null,null,0]
["4.2","Fornecimento e execução de alvenaria de elevacao e proteccao do tanque de lavar as maos em blocos vazados de 0,15 m e assentes com argamassa de cimento e areia ao traço de 1:5 incluindo trabalhos complementares","m2",6.5,null,0]
[null,"Supply and laying of masonry 0.15m thick wall with cement mortar and sand ratio 1:5, including all complementary work",null,null,null,0]
["4.3","Fornecimento e execução de alvenaria em empena em blocos vazados de 0,15 m e assentes com argamassa de cimento e areia ao traço de 1:5 incluindo trabalhos complementares","m2",4.4000000000000004,null,0]
[null,"Supply and laying of masonry 0.15m thick brick, laid with cement mortar and sand ratio 1:5, including all complementary work",null,null,null,0]
[null,"SUB TOTAL 4",null,null,null,{"$f":"SUM(F47:F52)","v":0}]
[null,"V. COBERTURA / ROOF WORKS"]
["5.1","Fornecimento e aplicação de asnas em madeira de pinho tratada de 150x50mm (ver peças desenhadas) incluindo acessórios de fixação e ligação e todos trabalhos complementares, inclusive chapa metálica de ferro liso espessura 5mm para ancoragem das asnas na viga de coroamento, conforme detalhe em projeto","Un",7,null,{"$f":"D55*ROUND(E55,2)","v":0}]
[null,"Supply and Assembly of timber trusses according with the drawings, including juntions acessories and all complementary works",null,null,null,0]
["5.2","Fornecimento e aplicação de madres em madeira de pinho tratada 70x50mm espaçadas a 600mm incluindo acessórios de fixação e ligação e todos trabalhos complementares","ml",128,null,0]
[null,"Supply and Assembly of 70x50mm timber Purlins, including juntions acessories and all complementary works",null,null,null,0]
["5.3","Fornecimento e colocação de chapas IBR 0.6mm Aluminozincadas, incluindo cumeeira em chapalisa, acessorios de fixacao e todos os trabalhos complementares","m2",83,null,0]
[null,"Supply and fixing 0.60mm IBR roof sheet including galvanised ridge cap, fixing acessories and all complementary works",null,null,null,0]
[null,"SUB TOTAL 5",null,null,null,{"$f":"SUM(F55:F60)","v":0}]
[null,"VI. ACABAMENTOS / FINISHING"]
["6.1","Execução de reboco em paredes, pilares e vigas devidamente regularizado com argamassa de cimento e areia ao traço 1:4,incluindo trabalhos complementares","m2",52,null,{"$f":"D63*ROUND(E63,2)","v":0}]
[null,"Cement and sand ratio 1:4, plaster in walls, columns and beams, including all preparatory and complementary work",null,null,null,0]
["6.2","Execução da betonilha lisa esponjada, feita de argamassa de cimento e areia ao traço 1:3 em pavimento incluindo trabalhos complementares","m2",66,null,0]
[null,"Cement and sand ratio 1:3, Hard Regular screed in pavement, including all preparatory and complementary works",null,null,null,0]
["6.3","Pintura das paredes, pilares e vigas  a duas demãos com tinta apropriada, incluindo aplicação de primário e todos trabalhos preparatórios e complementares","m2",52,null,0]
[null,"Wall, columns and beams painting, including primer and all preparatory and complementary work",null,null,null,0]
[null,"SUB TOTAL 6",null,null,null,{"$f":"SUM(F63:F68)+G7","v":0}]
[null,"VII.  REDE HIDRAULICA / HYDRAULICS"]
["7.1","Execução de tanque de lavar as mãos (800mmx600mmx 1200) em alvenaria rebocada com argamassa impermeabilizante, incluindo sistema de descarga das águas atá ao dreno em tubo PVC 110mm, e todos acessórios necessários ao bom funcionamento","un",1,null,{"$f":"D71*ROUND(E71,2)","v":0}]
[null,"Construct a masonry wash hand basin (800mmx600mmx1200mm), finished with waterproof cement, including conection to the sawage with 110mm PVC pipe and all necessary acessories",null,null,null,0]
["7.2","Instalação da Rede de Drenagem de Águas Pluviais em PVC ( Caleiras e tubos de queda) incluindo todos os acessórios de ligação e fixação e trabalhos complementares","Vg",1,null,0]
[null,"Supply and assembly o f PVC  rain water colect system (gutter and down pipes), including fixing and connections acessories and all complementary works",null,null,null,0]
["7.3","Construção de um dreno com 1500mm de diametro e 2000mm de profundidade, incluindo trabalhos de escavação, aplicação de fundo em pedra e tampa em betão armado","un",1,null,0]
[null,"Construction of  1500mm diameter and 2000mm deep soak pit, including excavation work, backfill with stone and reinforced concrete cover",null,null,null,0]
[null,"SUB TOTAL 7",null,null,null,{"$f":"SUM(F71:F76)","v":0}]
[null,"VIII.  INSTALACAO ELECTRICA / ELECTRICITY"]
["8.1","Instalação de rede eléctrica com fornecimento e aplicação de 2 candeeiros fluorescentes de 18w e 2 tomadas exteriores 16A do tipo estanque, incluindo material de fixação para o seu bom funcionamento","Vg",1,null,{"$f":"D79*ROUND(E79,2)","v":0}]
[null,"Supply and assembly of electrical system, including 2 fluorescent luminaries and 2 16A external outlets",null,null,null,0]
[null,"SUB TOTAL 8",null,null,null,{"$f":"SUM(F79:F80)","v":0}]
[null,"IX. BANCOS / BENCHES"]
["9.1","Fornecimento e montagem de bancos prefabricados 1.9x0.6m em betão armado, incluindo trabalhos complementares","Un",16,null,{"$f":"D83*ROUND(E83,2)","v":0}]
[null,"Supply and assembly of reinforced concrete benches 2.00x0.6m",null,null,null,0]
[null,"SUB TOTAL 9",null,null,null,{"$f":"SUM(F83:F84)","v":0}]